[Event "Budapest Chess Festival 2024"]
[Site "Budapest"]
[Date "2024.05.26"]
[Round "4.2"]
[White "Gschnitzer, Adrian"]
[Black "Kantor, Gergely"]
[Result "1/2-1/2"]
[ECO "C47"]
[WhiteElo "2431"]
[BlackElo "2527"]
[Annotator "TA"]
[PlyCount "16"]
[EventDate "2024.05.20"]
[EventType "swiss"]
[EventCountry "HUN"]
[SourceTitle "playchess.com"]
[Source "ChessBase"]
[SourceQuality "1"]
[TimeControl "40/5400+30:1800+30"]

{[%evp 11,16,-4,-7,-2,0,0,-4]} 1. e4 {[%emt 0:00:32]} e5 {[%emt 0:05:22]} 2. Nf3 {[%emt 0:00:12]} Nc6 {[%emt 0:00:06]} 3. Nc3 {[%emt 0:00:15]} Nf6 {[%emt 0:00:53]} 4. d4 {[%emt 0:00:09]} exd4 {[%emt 0:00:22]} 5. Nxd4 {[%emt 0:00:09]} Bb4 {[%emt 0:00:27]} 6. Nxc6 {[%emt 0:00:15]} bxc6 {[%emt 0:00:02] The position is equal.} 7. Bd3 {[%emt 0:00:13]} O-O {[%emt 0:00:03][%cal Of6e4]} ({Reject} 7... Bxc3+ 8. bxc3 Qe7 9. O-O $14) 8. O-O {[%emt 0:00:12]} d5 {[%emt 0:00:23] Not much happened in this game.   OK:         	White=1     	Black=2} 1/2-1/2

[Event "Budapest Chess Festival 2024"]
[Site "Budapest"]
[Date "2024.05.26"]
[Round "4.3"]
[White "Aryan Chopra"]
[Black "Haring, Filip"]
[Result "1/2-1/2"]
[ECO "C50"]
[WhiteElo "2641"]
[BlackElo "2484"]
[Annotator "TA"]
[PlyCount "111"]
[EventDate "2024.05.20"]
[EventType "swiss"]
[EventCountry "HUN"]
[SourceTitle "playchess.com"]
[Source "ChessBase"]
[SourceQuality "1"]
[TimeControl "40/5400+30:1800+30"]

{[%evp 38,111,0,0,16,-10,-5,-18,-16,-46,-51,-41,-35,-41,-36,-72,-81,-101,-100,-100,-91,-77,-24,-25,27,27,11,18,6,6,0,9,20,8,8,8,8,8,8,8,8,8,8,8,10,0,10,10,38,8,8,8,8,8,8,8,8,8,8,8,8,0,8,0,0,0,8,8,8,8,8,8,8,0,0,0]} 1. e4 {[%emt 0:00:33]} e5 {[%emt 0:00:51]} 2. Nf3 {[%emt 0:00:06]} Nc6 {[%emt 0:00:06]} 3. Bc4 {[%emt 0:00:06]} Nf6 {[%emt 0:00:13]} 4. d3 {[%emt 0:00:06]} Bc5 {[%emt 0:00:43]} 5. c3 {[%emt 0:00:10]} d6 {[%emt 0:00:13]} 6. O-O {[%emt 0:00:10]} O-O {[%emt 0:00:38]} 7. h3 {[%emt 0:00:13]} Bb6 {[%emt 0:01:01] Recently 7...a5 got a lot of attention.} 8. Re1 {[%emt 0:00:35] C54: Giuoco Piano: 4 c3 Nf6, main lines with 5 d4 and 5 d3.} Ne7 {[%emt 0:01:14]} 9. d4 {[%emt 0:00:44]} Ng6 {[%emt 0:00:47]} 10. Nbd2 {[%emt 0:08:47]} c6 {[%emt 0:00:53]} 11. Bf1 {[%emt 0:09:34]} Re8 {[%emt 0:08:59]} 12. a4 {[%emt 0:15:10]} h6 {[%emt 0:15:33]} 13. Qc2 {[%emt 0:07:11]} exd4 {[%emt 0:20:48]} 14. cxd4 {[%emt 0:00:20]} Ba5 {[%emt 0:00:34]} 15. Re3 {[%emt 0:06:19]} Be6 {[%emt 0:06:14]} 16. b3 {[%emt 0:03:29]} Bb4 {[%emt 0:04:10]} 17. Ba3 {[%emt 0:04:19]} Bxa3 {[%emt 0:04:16]} 18. Rxa3 {[%emt 0:00:05]} a5 {[%emt 0:01:14]} 19. Ra1 $146 {[%emt 0:02:44]} ({Predecessor:} 19. g3 Rc8 20. Kh2 Qb6 21. Ra1 d5 22. e5 Nd7 23. Rc3 Ne7 24. Rc1 Qb4 25. Qd3 {0-1 Harutjunyan,G (2458)-Harutyunian,T (2334) ARM-ch 1st League 74th+ 2013 (5)}) 19... Rc8 {[%emt 0:07:14]} 20. Qb2 {[%emt 0:05:56]} Qb6 {[%emt 0:06:52]} 21. Bd3 {[%emt 0:10:39]} Nf4 {[%emt 0:01:39]} 22. Bc2 {[%emt 0:00:28]} Qb4 {[%emt 0:03:24]} 23. Qa3 {[%emt 0:03:22]} (23. Kh2 {with more complications.} Rc7 24. Qc3 b6 25. Qxb4 axb4 26. Ree1) 23... Qxa3 {[%emt 0:03:41]} 24. Rxa3 {[%emt 0:00:05]} d5 {[%emt 0:03:42]} 25. e5 {[%emt 0:03:38]} Nd7 {[%emt 0:00:03]} 26. h4 {[%emt 0:00:03]} Bg4 {[%emt 0:02:00]} 27. b4 {[%emt 0:07:51]} axb4 {[%emt 0:00:46]} 28. Rab3 {[%emt 0:00:06]} c5 {[%emt 0:03:02]} 29. dxc5 {[%emt 0:00:05]} Rxc5 {[%emt 0:00:39]} (29... Nxc5 30. Rxb4 Nce6 31. Bb3 $11) ({Black should try} 29... d4 $17 30. Re4 (30. Rxb4 $2 dxe3 31. fxe3 Rxc5 $19) (30. Nxd4 Nxc5 31. Rb1 Nd5 $17) 30... d3 (30... Rxc5 31. Rxf4 Bxf3 32. Nxf3 $11)) 30. Rxb4 $11 {[%emt 0:02:02]} Nxg2 {[%emt 0:03:26]} (30... Rxc2 $142 31. Rxf4 Be6) 31. Kxg2 $11 {[%emt 0:00:06]} Bxf3+ {[%emt 0:00:03]} 32. Nxf3 {[%emt 0:00:07]} Rxc2 {[%emt 0:00:02]} 33. Rxb7 {[%emt 0:00:08]} Nc5 {[%emt 0:00:52]} 34. Rc7 {[%emt 0:00:41]} Ra8 {[%emt 0:01:01]} 35. Ra3 {[%emt 0:09:41]} Rc4 {[%emt 0:00:07]} 36. a5 {[%emt 0:00:08]} Ra4 {[%emt 0:00:55]} 37. Rxa4 {[%emt 0:00:48]} Nxa4 {[%emt 0:00:02]} 38. Nd4 {[%emt 0:00:01]} Rxa5 {[%emt 0:00:46]} 39. e6 {[%emt 0:00:07]} fxe6 {[%emt 0:00:05]} 40. Nxe6 {[%emt 0:00:00]} Ra6 {[%emt 0:00:00]} 41. Rxg7+ {[%emt 0:02:54]} (41. Nxg7 $2 {loses.} Rg6+ 42. Kf3 Rxg7 $19) 41... Kh8 {[%emt 0:01:44]} 42. Re7 {[%emt 0:00:19]} Rc6 {[%emt 0:06:45]} 43. f4 {[%emt 0:03:43]} Nc5 {[%emt 0:01:50]} 44. Nd4 {[%emt 0:01:03]} Ra6 {[%emt 0:07:24]} 45. Kf3 {[%emt 0:14:25]} Ra4 {[%emt 0:01:19]} 46. Nc6 {[%emt 0:01:17]} Nd3 {[%emt 0:01:51]} 47. Rf7 {[%emt 0:00:40]} Kg8 {[%emt 0:02:18]} 48. Rf5 {[%emt 0:00:24]} Kg7 {[%emt 0:02:20]} 49. h5 {[%emt 0:04:30]} (49. Rxd5 Nxf4 50. Rd7+ Kf6) 49... Re4 {[%emt 0:06:15]} 50. Rxd5 {[%emt 0:07:47]} Rxf4+ {[%emt 0:00:08]} 51. Ke3 {[%emt 0:00:03]} Rc4 {[%emt 0:04:40]} 52. Na5 {[%emt 0:01:40]} ({Much weaker is} 52. Kxd3 Rxc6 53. Rd4 Rc5 $17) 52... Rc5 {[%emt 0:00:19]} 53. Rd7+ {[%emt 0:00:07]} Kf6 {[%emt 0:00:41]} 54. Nb7 {[%emt 0:00:21]} Ne5 {[%emt 0:00:31]} 55. Rd6+ {[%emt 0:01:29]} Kg5 {[%emt 0:00:30]} 56. Nxc5 1/2-1/2

[Event "Budapest Chess Festival 2024"]
[Site "Budapest"]
[Date "2024.05.26"]
[Round "4.4"]
[White "Wadsworth, Matthew J"]
[Black "Onyshchuk, Volodymyr"]
[Result "0-1"]
[ECO "E62"]
[WhiteElo "2470"]
[BlackElo "2619"]
[Annotator "TA"]
[PlyCount "96"]
[EventDate "2024.05.20"]
[EventType "swiss"]
[EventCountry "HUN"]
[SourceTitle "playchess.com"]
[Source "ChessBase"]
[SourceQuality "1"]
[TimeControl "40/5400+30:1800+30"]

{[%evp 19,96,21,16,0,14,8,15,18,51,31,47,44,45,45,62,31,108,110,128,113,104,94,94,84,109,130,113,100,104,112,133,64,68,52,49,58,64,30,41,48,56,0,0,0,0,0,0,-250,-251,-384,-417,-402,-417,-407,-308,-449,-449,-431,-422,-445,-423,-567,-454,-567,-559,-619,-608,-608,-593,-1651,-1070,-1707,-1593,-2104,-1742,-2028,-1468,-1970,-1896]} 1. d4 {[%emt 0:00:35]} d6 {[%emt 0:00:44]} 2. Nf3 {[%emt 0:00:11]} g6 {[%emt 0:00:21]} 3. c4 {[%emt 0:00:08]} Bg7 {[%emt 0:00:21]} 4. g3 {[%emt 0:00:22]} Nf6 {[%emt 0:00:11]} 5. Bg2 {[%emt 0:00:09]} O-O {[%emt 0:00:08]} 6. Nc3 {[%emt 0:00:09]} Nc6 {[%emt 0:00:23]} 7. d5 {[%emt 0:00:29]} Na5 {[%emt 0:00:20]} 8. b3 {[%emt 0:00:09]} c5 {[%emt 0:00:15]} 9. Bb2 {[%emt 0:00:24]} a6 {[%emt 0:00:14]} 10. O-O {[%emt 0:00:40]} Rb8 {[%emt 0:00:29]} 11. Nd2 {[%emt 0:00:35]} b5 {[%emt 0:00:33]} 12. Qc1 {[%emt 0:00:14]} e5 {[%emt 0:11:56]} 13. dxe6 {[%emt 0:02:08] The position is equal.} Bxe6 {[%emt 0:01:10]} 14. cxb5 $1 {[%emt 0:01:31]} axb5 {[%emt 0:00:51]} 15. Nce4 {[%emt 0:00:25]} (15. Rd1 {simplifies} Bf5 16. Nde4 Bxe4 17. Nxe4 Nxe4 18. Bxg7 Nxg3 19. hxg3 Kxg7 20. Qc3+) 15... Nd5 {[%emt 0:08:22]} 16. Bxg7 {[%emt 0:05:55]} Kxg7 {[%emt 0:00:13]} 17. Nf3 {[%emt 0:01:13]} (17. Rd1 $5) 17... b4 {[%emt 0:18:21]} (17... f6 $14) 18. Nfg5 $1 $16 {[%emt 0:11:55]} Nc6 {[%emt 0:25:33] [#]} 19. Qb2+ $1 {[%emt 0:08:50]} Kg8 {[%emt 0:00:46]} 20. Rad1 {[%emt 0:01:55][%cal Od1d5] Strongly threatening Rxd5!} Nce7 {[%emt 0:00:43]} 21. Rd2 {[%emt 0:14:55] Threatens to win with Rfd1.} h6 {[%emt 0:04:32]} 22. Nxe6 {[%emt 0:05:51]} fxe6 {[%emt 0:00:06] [#]} 23. Nxc5 $1 {[%emt 0:03:12][%mdl 512]} dxc5 {[%emt 0:00:33]} 24. e4 {[%emt 0:00:08]} Qd6 {[%emt 0:11:17][%cal Oe7c6]} 25. Rfd1 {[%emt 0:03:09]} ({Better is} 25. exd5 $16 Nf5 26. Re1) 25... Nc6 $14 {[%emt 0:00:16][%cal Oc6d4]} 26. exd5 {[%emt 0:02:09]} Nd4 {[%emt 0:00:02]} 27. dxe6 {[%emt 0:03:27]} Qxe6 {[%emt 0:00:03]} 28. Rd3 {[%emt 0:01:59]} Rbe8 {[%emt 0:04:43]} 29. Re3 {[%emt 0:04:09]} Qf6 {[%emt 0:00:12]} 30. Qd2 {[%emt 0:01:32]} (30. Kh1 $14) 30... Rd8 $1 $11 {[%emt 0:00:45]} 31. Rd3 {[%emt 0:01:02][%cal Og1h1]} g5 {[%emt 0:00:17]} 32. h3 {[%emt 0:04:11]} Kg7 {[%emt 0:02:44]} 33. Re1 $2 {[%emt 0:03:16] White is on the road to losing.} (33. Rf1 $11 {and White is okay.}) 33... Nxb3 $1 $19 {[%emt 0:01:21]} 34. Rxd8 {[%emt 0:07:22]} (34. Rd7+ $142 Kh8 35. axb3 Rxd7 36. Qxd7 Qxf2+ 37. Kh2 Qxe1 38. Qc6) 34... Nxd2 {[%emt 0:00:09]} 35. Rxd2 {[%emt 0:00:05]} c4 {[%emt 0:01:14]} 36. Rde2 {[%emt 0:00:44]} Qd4 {[%emt 0:01:10] Dodges Bd5} 37. Be4 {[%emt 0:01:11]} (37. Bc6 {is a better defense.}) 37... Re8 {[%emt 0:00:34] Black is clearly winning.} 38. Kg2 {[%emt 0:01:08]} Re7 {[%emt 0:01:24]} 39. Re3 {[%emt 0:01:09]} c3 {[%emt 0:01:22]} 40. R1e2 {[%emt 0:00:00]} Qc5 {[%emt 0:00:00]} 41. Kg1 {[%emt 0:04:47]} Qc4 {[%emt 0:08:38]} 42. Kg2 {[%emt 0:03:25]} Rd7 {[%emt 0:12:35] And now ...Rd2 would win.} 43. Bf5 {[%emt 0:05:14]} Rd2 {[%emt 0:01:57]} 44. Re7+ {[%emt 0:02:47]} Kf6 {[%emt 0:00:09]} 45. R2e6+ {[%emt 0:00:59] [#]} Qxe6 $3 {[%emt 0:00:11][%mdl 512]} 46. Rxe6+ {[%emt 0:00:05]} Kxf5 {[%emt 0:00:04]} 47. Rb6 {[%emt 0:00:08]} c2 {[%emt 0:00:14]} (47... Rxa2 $2 48. Rxb4 c2 49. Rc4 $19) 48. Rc6 {[%emt 0:00:07]} Ke4 {[%emt 0:00:25] Weighted Error Value: White=0.78/Black=0.15 (very precise) .  Loses game:     	White=1     	---        Mistake:       	White=4     	Black=1      Inaccurate:     	White=4     	Black=1      OK:         	White=5     	Black=11     Best:        	White=3     	Black=4      Strong:       	White=3     	Black=2      Brilliant:      	White=1     	---} 0-1

[Event "Budapest Chess Festival 2024"]
[Site "Budapest"]
[Date "2024.05.26"]
[Round "4.5"]
[White "Berkes, Ferenc"]
[Black "Cabarkapa, Novak"]
[Result "1/2-1/2"]
[ECO "A46"]
[WhiteElo "2618"]
[BlackElo "2444"]
[Annotator "TA"]
[PlyCount "27"]
[EventDate "2024.05.20"]
[EventType "swiss"]
[EventCountry "HUN"]
[SourceTitle "playchess.com"]
[Source "ChessBase"]
[SourceQuality "1"]
[TimeControl "40/5400+30:1800+30"]

{[%evp 11,27,9,11,-2,0,-20,-5,-27,-6,-2,-17,-8,-13,-11,41,24,34,38]} 1. d4 {[%emt 0:00:36]} Nf6 {[%emt 0:06:41]} 2. Nf3 {[%emt 0:00:06][%cal Bg1f3,Bf3d2,Bd2b3][%mdl 32]} d6 {[%emt 0:00:23]} 3. g3 {[%emt 0:00:50]} Nbd7 {[%emt 0:00:14]} 4. Bg2 {[%emt 0:00:35]} e5 {[%emt 0:00:18]} 5. dxe5 {[%emt 0:01:20]} dxe5 {[%emt 0:00:28]} 6. O-O {[%emt 0:00:25]} Bc5 {[%emt 0:01:07]} 7. Nfd2 {[%emt 0:03:57]} O-O {[%emt 0:06:04]} 8. a4 {[%emt 0:13:20]} a5 {[%emt 0:06:33]} 9. Nb3 {[%emt 0:05:11] The position is equal.} Bb4 {[%emt 0:08:20]} 10. Bd2 {[%emt 0:06:32]} Qe7 {[%emt 0:06:48]} 11. Bxb4 {[%emt 0:11:25]} axb4 {[%emt 0:02:37]} 12. c3 {[%emt 0:00:35]} Ra6 {[%emt 0:29:23]} (12... c6 $11) 13. Qc2 {[%emt 0:03:27]} e4 {[%emt 0:00:43]} 14. cxb4 {[%emt 0:00:34] Weighted Error Value: White=0.10 (very precise) /Black=0.14 (very precise) .  Mistake:       	---       	Black=1      OK:         	White=3     	Black=4      Best:        	White=1     	---} 1/2-1/2

[Event "Budapest Chess Festival 2024"]
[Site "Budapest"]
[Date "2024.05.26"]
[Round "4.6"]
[White "Shohat, Yotam"]
[Black "Kozak, Adam"]
[Result "1/2-1/2"]
[ECO "B90"]
[WhiteElo "2410"]
[BlackElo "2607"]
[Annotator "TA"]
[PlyCount "75"]
[EventDate "2024.05.20"]
[EventType "swiss"]
[EventCountry "HUN"]
[SourceTitle "playchess.com"]
[Source "ChessBase"]
[SourceQuality "1"]
[TimeControl "40/5400+30:1800+30"]

{[%evp 17,75,24,34,12,19,18,22,27,102,96,112,107,106,113,108,120,120,113,114,114,107,102,145,116,109,42,42,42,42,42,42,42,42,-17,-17,-17,-17,-39,-39,-39,-39,-39,-39,-39,-39,-39,-39,-39,-39,-39,-39,-39,-39,-39,-39,-39,-39,-39,-39,-39]} 1. e4 {[%emt 0:00:32]} c5 {[%emt 0:00:32]} 2. Nf3 {[%emt 0:00:05]} d6 {[%emt 0:00:07]} 3. d4 {[%emt 0:00:05]} cxd4 {[%emt 0:00:06]} 4. Nxd4 {[%emt 0:00:04]} Nf6 {[%emt 0:00:07]} 5. Nc3 {[%emt 0:00:03]} a6 {[%emt 0:00:06]} 6. Be3 {[%emt 0:00:04]} e5 {[%emt 0:00:11]} 7. Nb3 {[%emt 0:00:05]} Be6 {[%emt 0:01:39]} 8. f3 {[%emt 0:00:06]} Nbd7 {[%emt 0:02:22]} 9. g4 {[%emt 0:00:51]} b5 {[%emt 0:02:27][%cal Bb7b5,Bb5b4][%mdl 32]} 10. a4 {[%emt 0:00:05]} b4 {[%emt 0:09:45]} 11. Nd5 {[%emt 0:00:23]} Bxd5 {[%emt 0:10:58]} 12. exd5 {[%emt 0:00:59] The position is equal.} Nc5 {[%emt 0:00:06]} (12... Nb6 $11 {remains equal.}) 13. Qd2 $16 {[%emt 0:05:10]} Nxb3 {[%emt 0:08:12]} 14. cxb3 {[%emt 0:00:08]} Be7 {[%emt 0:02:15] Black is weak on the light squares} 15. O-O-O {[%emt 0:01:34][%cal Be1c1,Bc1b1,Bb1a2][%mdl 32]} (15. Qxb4 Nxd5 16. Qe4 Nxe3 17. Qxe3 O-O $17) 15... a5 {[%emt 0:02:12]} 16. Bb5+ {[%emt 0:00:45]} Nd7 {[%emt 0:00:32]} 17. Kb1 {[%emt 0:00:18] Active counter play!} O-O {[%emt 0:01:45] [#]} 18. h4 $1 {[%emt 0:02:22][%mdl 512]} Rc8 {[%emt 0:01:28]} 19. g5 {[%emt 0:01:02]} Nc5 {[%emt 0:05:47] [#]} 20. Ka2 $1 {[%emt 0:01:16]} f5 {[%emt 0:11:09]} 21. Bxc5 {[%emt 0:22:26]} ({Better is} 21. f4 $16) 21... Rxc5 $14 {[%emt 0:00:13]} 22. f4 {[%emt 0:00:05] fxe5 would now be deadly.} e4 {[%emt 0:03:24]} 23. h5 {[%emt 0:01:27][%cal Bh4h5,Bh5h6][%mdl 32]} Qc7 $1 {[%emt 0:04:17]} 24. h6 {[%emt 0:09:18] aiming for hxg7.} g6 {[%emt 0:01:23]} 25. Qd4 {[%emt 0:02:57]} (25. Rc1 $14) 25... Bd8 $11 {[%emt 0:00:39]} 26. Rc1 {[%emt 0:20:07]} Qe7 $1 {[%emt 0:01:11]} (26... Rxc1 $2 {too greedy.} 27. Rxc1 Qe7 28. Rc8 $18) (26... Bxg5 27. fxg5 Rxc1 28. Rxc1 $18) 27. Rxc5 {[%emt 0:08:15]} dxc5 {[%emt 0:00:07] Black is slightly better.} 28. Qe3 {[%emt 0:04:11][%cal Od5d6] And now d6! would win.} ({Not} 28. d6 $2 cxd4 29. dxe7 Bxe7 30. Bc4+ Kh8 $19) 28... Qd6 {[%emt 0:10:30]} 29. Bc4 {[%emt 0:01:13]} Bc7 {[%emt 0:01:47]} 30. Rf1 {[%emt 0:00:09]} Rd8 {[%emt 0:01:45]} 31. Kb1 {[%emt 0:00:10]} Kf8 {[%emt 0:00:53]} 32. Ka2 {[%emt 0:00:05]} Qb6 {[%emt 0:01:10]} 33. Kb1 {[%emt 0:00:45]} Bd6 {[%emt 0:00:15]} 34. Ka2 {[%emt 0:00:08]} Ke7 {[%emt 0:04:49]} 35. Kb1 {[%emt 0:00:09]} Rd7 {[%emt 0:00:10]} 36. Ka2 {[%emt 0:00:08]} Qb8 {[%emt 0:00:04]} 37. Kb1 {[%emt 0:00:24]} Qh8 {[%emt 0:00:59]} 38. Rd1 {[%emt 0:00:06] Against Qd4.   Weighted Error Value: White=0.07 (flawless) /Black=0.05 (flawless) .  Mistake:       	White=2     	Black=1      Inaccurate:     	---       	Black=1      OK:         	White=8     	Black=13     Best:        	White=1     	Black=1      Strong:       	White=1     	Black=2} 1/2-1/2

[Event "Budapest Chess Festival 2024"]
[Site "Budapest"]
[Date "2024.05.26"]
[Round "4.7"]
[White "Nguyen, Piotr"]
[Black "Prohaszka, Peter"]
[Result "1/2-1/2"]
[ECO "A14"]
[WhiteElo "2402"]
[BlackElo "2581"]
[Annotator "RC"]
[PlyCount "119"]
[EventDate "2024.05.20"]
[EventType "swiss"]
[EventCountry "HUN"]
[SourceTitle "playchess.com"]
[Source "ChessBase"]
[SourceQuality "1"]
[TimeControl "40/5400+30:1800+30"]

1. c4 {[%emt 0:00:33]} e6 {[%emt 0:00:36]} 2. g3 {[%emt 0:00:11]} d5 {[%emt 0:00:05]} 3. Bg2 {[%emt 0:00:08]} Nf6 {[%emt 0:00:04]} 4. Nf3 {[%emt 0:00:05]} Be7 {[%emt 0:00:04]} 5. O-O {[%emt 0:00:17]} O-O {[%emt 0:00:03]} 6. b3 {[%emt 0:00:04]} a5 {[%emt 0:00:04]} 7. Nc3 {[%emt 0:00:34]} c6 {[%emt 0:00:10]} 8. e3 {[%emt 0:08:03]} b6 {[%emt 0:04:49]} 9. Bb2 {[%emt 0:00:42]} Ba6 {[%emt 0:02:38]} 10. Qe2 {[%emt 0:17:16]} a4 {[%emt 0:11:08]} 11. Rac1 {[%emt 0:04:04]} b5 {[%emt 0:10:00]} 12. d3 {[%emt 0:01:13]} Qb6 {[%emt 0:27:25]} 13. e4 {[%emt 0:11:16]} dxc4 {[%emt 0:12:09]} 14. dxc4 {[%emt 0:03:59]} axb3 {[%emt 0:04:09]} 15. axb3 {[%emt 0:00:05]} bxc4 {[%emt 0:00:14]} 16. bxc4 {[%emt 0:01:39]} Bxc4 {[%emt 0:03:35]} 17. Qxc4 {[%emt 0:00:43]} Qxb2 {[%emt 0:00:04]} 18. Nd4 {[%emt 0:10:52]} Qb4 {[%emt 0:03:03]} 19. Qxb4 {[%emt 0:03:45]} Bxb4 {[%emt 0:00:01]} 20. e5 {[%emt 0:01:30]} Ng4 {[%emt 0:03:13]} 21. Bxc6 {[%emt 0:09:44]} Nxc6 {[%emt 0:10:23]} 22. Nxc6 {[%emt 0:00:14]} Ba3 {[%emt 0:00:04]} 23. Rc2 {[%emt 0:12:27]} Rfc8 {[%emt 0:02:24]} 24. Nb5 {[%emt 0:09:15]} Nxe5 {[%emt 0:01:14]} 25. Nxa3 {[%emt 0:01:43]} Rxc6 {[%emt 0:00:07]} 26. Rxc6 {[%emt 0:00:11]} Nxc6 {[%emt 0:00:01]} 27. Nc4 {[%emt 0:00:13]} g5 {[%emt 0:01:22]} 28. Kg2 {[%emt 0:01:48]} Kg7 {[%emt 0:00:09]} 29. Ne3 {[%emt 0:01:47]} Ra2 {[%emt 0:00:21]} 30. h4 {[%emt 0:00:18]} gxh4 {[%emt 0:00:47]} 31. gxh4 {[%emt 0:00:02]} Ne7 {[%emt 0:02:46]} 32. Rb1 {[%emt 0:01:14]} Ra4 {[%emt 0:01:04]} 33. Kg3 {[%emt 0:00:22]} f5 {[%emt 0:00:37]} 34. Ng2 {[%emt 0:00:40]} Rg4+ {[%emt 0:01:36]} 35. Kh3 {[%emt 0:00:16]} Kf6 {[%emt 0:00:15]} 36. Rb6 {[%emt 0:00:41]} Nd5 {[%emt 0:00:48]} 37. Rb3 {[%emt 0:00:31]} Rg7 {[%emt 0:00:34]} 38. Ra3 {[%emt 0:00:20]} Ke5 {[%emt 0:00:17]} 39. Ra6 {[%emt 0:00:37]} h6 {[%emt 0:00:40]} 40. Ra8 {[%emt 0:00:00]} Nf4+ {[%emt 0:00:00]} 41. Nxf4 {[%emt 0:00:50]} Kxf4 {[%emt 0:00:56]} 42. Rh8 {[%emt 0:04:42]} Kf3 {[%emt 0:29:37]} 43. Rxh6 {[%emt 0:00:46]} Re7 {[%emt 0:00:22]} 44. h5 {[%emt 0:10:58]} f4 {[%emt 0:00:48]} 45. Kh4 {[%emt 0:11:25]} e5 {[%emt 0:01:35]} 46. Kg5 {[%emt 0:01:13]} Kxf2 {[%emt 0:00:26]} 47. Kf6 {[%emt 0:00:33]} Re8 {[%emt 0:00:19]} 48. Kf7 {[%emt 0:00:06]} Ra8 {[%emt 0:00:17]} 49. Re6 {[%emt 0:00:12]} Ra7+ {[%emt 0:01:02]} 50. Kg6 {[%emt 0:00:37]} f3 {[%emt 0:00:33]} 51. Rxe5 {[%emt 0:00:07]} Kg3 {[%emt 0:00:12]} 52. h6 {[%emt 0:00:34]} Ra6+ {[%emt 0:00:44]} 53. Kg7 {[%emt 0:01:15]} f2 {[%emt 0:00:27]} 54. Rf5 {[%emt 0:00:06]} Ra7+ {[%emt 0:00:05]} 55. Kg6 {[%emt 0:00:08]} Ra6+ {[%emt 0:00:04]} 56. Kg7 {[%emt 0:00:05]} Kg2 {[%emt 0:01:01]} 57. h7 {[%emt 0:00:04]} Ra7+ {[%emt 0:00:04]} 58. Kg6 {[%emt 0:00:04]} Rxh7 {[%emt 0:00:39]} 59. Rxf2+ {[%emt 0:00:09]} Kxf2 {[%emt 0:00:01]} 60. Kxh7 {[%emt 0:00:01]} 1/2-1/2